[Event "Early-Titled-Tuesday-Blitz-May-07-2024"]
[Site "Chess.com"]
[Date "2024.05.07"]
[Round "9"]
[White "GMKrikor"]
[Black "SharapovEvgeny"]
[Result "0-1"]
[WhiteElo "2829"]
[BlackElo "2650"]
[TimeControl "180+1"]
[EndTime "9:51:23 PDT"]
[Termination "SharapovEvgeny won by checkmate"]

1. Nf3 {[%clk 0:03:00.9]} 1... c5 {[%clk 0:02:59]} 2. c4 {[%clk 0:03:00]} 2...
Nc6 {[%clk 0:02:58.8]} 3. Nc3 {[%clk 0:02:56.7]} 3... e5 {[%clk 0:02:58.5]} 4.
e3 {[%clk 0:02:56.1]} 4... Nf6 {[%clk 0:02:58.2]} 5. d4 {[%clk 0:02:55.1]} 5...
cxd4 {[%clk 0:02:58.5]} 6. exd4 {[%clk 0:02:54.8]} 6... e4 {[%clk 0:02:58.8]} 7.
Ne5 {[%clk 0:02:51.2]} 7... Bb4 {[%clk 0:02:58.1]} 8. Be2 {[%clk 0:02:38.2]}
8... Qa5 {[%clk 0:02:57]} 9. O-O {[%clk 0:02:30.4]} 9... Nxe5 {[%clk 0:02:53.8]}
10. dxe5 {[%clk 0:02:31.3]} 10... Qxe5 {[%clk 0:02:53.4]} 11. Be3 {[%clk
0:02:04]} 11... Bxc3 {[%clk 0:02:47.1]} 12. bxc3 {[%clk 0:02:03.4]} 12... O-O
{[%clk 0:02:46.6]} 13. Qd4 {[%clk 0:01:55.2]} 13... d6 {[%clk 0:02:36.6]} 14.
Rfd1 {[%clk 0:01:51.1]} 14... Bg4 {[%clk 0:02:34.4]} 15. Qxe5 {[%clk 0:01:08]}
15... dxe5 {[%clk 0:02:33.8]} 16. Bxg4 {[%clk 0:00:51.1]} 16... Nxg4 {[%clk
0:02:33.2]} 17. Rd7 {[%clk 0:00:52]} 17... Nxe3 {[%clk 0:02:19.5]} 18. fxe3
{[%clk 0:00:52]} 18... b6 {[%clk 0:02:19.6]} 19. c5 {[%clk 0:00:49.7]} 19...
Rfc8 {[%clk 0:02:12.6]} 20. Rf1 {[%clk 0:00:40.7]} 20... f6 {[%clk 0:02:09.4]}
21. Rfd1 {[%clk 0:00:32]} 21... Rxc5 {[%clk 0:02:04.2]} 22. Re7 {[%clk
0:00:27.7]} 22... Kh8 {[%clk 0:01:45.8]} 23. Rdd7 {[%clk 0:00:20]} 23... Rg8
{[%clk 0:01:44.9]} 24. Rxa7 {[%clk 0:00:11.7]} 24... Rxc3 {[%clk 0:01:44.5]} 25.
Kf2 {[%clk 0:00:12]} 25... h5 {[%clk 0:01:41]} 26. h4 {[%clk 0:00:05.7]} 26...
Kh7 {[%clk 0:01:40.7]} 27. Re6 {[%clk 0:00:03.4]} 27... Kg6 {[%clk 0:01:35.7]}
28. Rxb6 {[%clk 0:00:03.4]} 28... Rd8 {[%clk 0:01:24.1]} 29. Rbb7 {[%clk
0:00:03.3]} 29... Rd2+ {[%clk 0:01:22.4]} 30. Ke1 {[%clk 0:00:02.3]} 30... Rcc2
{[%clk 0:01:14]} 31. Rxg7+ {[%clk 0:00:02.1]} 31... Kf5 {[%clk 0:01:13.8]} 32.
Raf7 {[%clk 0:00:01.8]} 32... Re2+ {[%clk 0:01:11.6]} 33. Kd1 {[%clk 0:00:01.9]}
33... Rcd2+ {[%clk 0:01:11.5]} 34. Kc1 {[%clk 0:00:02.2]} 34... Rxa2 {[%clk
0:01:11.3]} 35. Rg5+ {[%clk 0:00:02.5]} 35... Ke6 {[%clk 0:01:10.5]} 36. Rgg7
{[%clk 0:00:03]} 36... Ra1# {[%clk 0:01:09.9]} 0-1

[Event "Early-Titled-Tuesday-Blitz-May-07-2024"]
[Site "Chess.com"]
[Date "2024.05.07"]
[Round "9"]
[White "Ryukchess81"]
[Black "juanchesst"]
[Result "0-1"]
[WhiteElo "2430"]
[BlackElo "2675"]
[TimeControl "180+1"]
[EndTime "9:51:26 PDT"]
[Termination "juanchesst won by resignation"]

1. d4 {[%clk 0:03:00.9]} 1... Nf6 {[%clk 0:02:59.6]} 2. Bf4 {[%clk 0:03:01.4]}
2... d5 {[%clk 0:02:59.3]} 3. e3 {[%clk 0:03:01.9]} 3... c6 {[%clk 0:02:59.4]}
4. c4 {[%clk 0:03:01.4]} 4... g6 {[%clk 0:02:59.7]} 5. Nc3 {[%clk 0:03:01.8]}
5... Bg7 {[%clk 0:03:00.1]} 6. Qb3 {[%clk 0:03:02.5]} 6... O-O {[%clk
0:02:57.1]} 7. cxd5 {[%clk 0:03:01.7]} 7... Nxd5 {[%clk 0:02:56.2]} 8. Nxd5
{[%clk 0:02:58.9]} 8... cxd5 {[%clk 0:02:53.8]} 9. Nf3 {[%clk 0:02:58.8]} 9...
Nc6 {[%clk 0:02:49.7]} 10. Be2 {[%clk 0:02:57.6]} 10... Qa5+ {[%clk 0:02:49.6]}
11. Qc3 {[%clk 0:02:57.7]} 11... Qxc3+ {[%clk 0:02:49.6]} 12. bxc3 {[%clk
0:02:58.6]} 12... Bd7 {[%clk 0:02:30.6]} 13. Rb1 {[%clk 0:02:54.8]} 13... Na5
{[%clk 0:02:29.3]} 14. O-O {[%clk 0:02:48.7]} 14... Rfc8 {[%clk 0:02:28.6]} 15.
Rfc1 {[%clk 0:02:49.3]} 15... e6 {[%clk 0:02:23.9]} 16. Ne5 {[%clk 0:02:48.3]}
16... Be8 {[%clk 0:02:23.1]} 17. Bb5 {[%clk 0:02:47]} 17... Bxb5 {[%clk
0:02:13.8]} 18. Rxb5 {[%clk 0:02:47.9]} 18... b6 {[%clk 0:02:14.4]} 19. Kf1
{[%clk 0:02:38.8]} 19... Bxe5 {[%clk 0:02:06.3]} 20. Bxe5 {[%clk 0:02:36.6]}
20... Rc4 {[%clk 0:02:06.4]} 21. Ke2 {[%clk 0:02:27.3]} 21... Rac8 {[%clk
0:02:06.4]} 22. Kd3 {[%clk 0:02:27.3]} 22... Ra4 {[%clk 0:01:55.6]} 23. Rc2
{[%clk 0:02:27.3]} 23... Nc4 {[%clk 0:01:53.5]} 24. Bf6 {[%clk 0:02:00.6]} 24...
Na3 {[%clk 0:01:52.3]} 25. Rbb2 {[%clk 0:01:49.5]} 25... Nxc2 {[%clk 0:01:50]}
26. Rxc2 {[%clk 0:01:49]} 26... Kf8 {[%clk 0:01:46]} 27. f3 {[%clk 0:01:49.5]}
27... Ke8 {[%clk 0:01:45.6]} 28. e4 {[%clk 0:01:50.3]} 28... Kd7 {[%clk
0:01:41.4]} 29. h4 {[%clk 0:01:46.8]} 29... h5 {[%clk 0:01:39.6]} 30. g4 {[%clk
0:01:46.8]} 30... Kd6 {[%clk 0:01:36.5]} 31. e5+ {[%clk 0:01:25.6]} 31... Kd7
{[%clk 0:01:36.3]} 32. Bg5 {[%clk 0:01:14.7]} 32... Ra3 {[%clk 0:01:33.4]} 33.
Bd2 {[%clk 0:01:12.5]} 33... b5 {[%clk 0:01:31.2]} 34. Bc1 {[%clk 0:01:08.2]}
34... Ra4 {[%clk 0:01:25.4]} 35. Rg2 {[%clk 0:00:56.4]} 35... Rac4 {[%clk
0:01:25]} 36. Bd2 {[%clk 0:00:53.2]} 36... Ra4 {[%clk 0:01:23.5]} 37. Bc1 {[%clk
0:00:53.1]} 37... Rc6 {[%clk 0:01:23.5]} 38. gxh5 {[%clk 0:00:52.7]} 38... gxh5
{[%clk 0:01:23.4]} 39. Rg5 {[%clk 0:00:53.1]} 39... Rxa2 {[%clk 0:01:22.4]} 40.
Rxh5 {[%clk 0:00:51.8]} 40... b4 {[%clk 0:01:22.5]} 41. Bd2 {[%clk 0:00:48]}
41... b3 {[%clk 0:01:21.8]} 42. Rh7 {[%clk 0:00:39.2]} 42... b2 {[%clk
0:01:11.8]} 43. Rxf7+ {[%clk 0:00:38.7]} 43... Kc8 {[%clk 0:01:12.5]} 44. Rf8+
{[%clk 0:00:28.2]} 44... Kb7 {[%clk 0:01:10.5]} 45. Rf7+ {[%clk 0:00:25.5]}
45... Ka6 {[%clk 0:01:10.6]} 46. Kc2 {[%clk 0:00:25.2]} 46... Rb6 {[%clk
0:01:10.7]} 0-1

[Event "Early-Titled-Tuesday-Blitz-May-07-2024"]
[Site "Chess.com"]
[Date "2024.05.07"]
[Round "9"]
[White "MiguelBestard1981"]
[Black "NovakRatko"]
[Result "0-1"]
[WhiteElo "2183"]
[BlackElo "2408"]
[TimeControl "180+1"]
[EndTime "9:51:28 PDT"]
[Termination "NovakRatko won by resignation"]

1. d4 {[%clk 0:02:58.5]} 1... d5 {[%clk 0:02:59.8]} 2. Bf4 {[%clk 0:02:57.9]}
2... c5 {[%clk 0:02:59.8]} 3. e3 {[%clk 0:02:58]} 3... Nc6 {[%clk 0:03:00]} 4.
c3 {[%clk 0:02:58.1]} 4... cxd4 {[%clk 0:03:00.6]} 5. exd4 {[%clk 0:02:57.3]}
5... f6 {[%clk 0:03:01.3]} 6. Nf3 {[%clk 0:02:53.2]} 6... Bg4 {[%clk 0:03:01.4]}
7. Bb5 {[%clk 0:02:45.8]} 7... e6 {[%clk 0:02:59.1]} 8. h3 {[%clk 0:02:44.2]}
8... Bh5 {[%clk 0:02:58.9]} 9. g4 {[%clk 0:02:38.3]} 9... Bf7 {[%clk 0:02:57.9]}
10. Qe2 {[%clk 0:02:31.4]} 10... Bd6 {[%clk 0:02:55.4]} 11. Bxd6 {[%clk
0:02:24.9]} 11... Qxd6 {[%clk 0:02:56.3]} 12. Nbd2 {[%clk 0:02:24.3]} 12... Ne7
{[%clk 0:02:55.4]} 13. Bd3 {[%clk 0:02:21.3]} 13... Ng6 {[%clk 0:02:54.7]} 14.
Qe3 {[%clk 0:02:12.4]} 14... Nf4 {[%clk 0:02:52.5]} 15. Bf1 {[%clk 0:02:09.6]}
15... O-O {[%clk 0:02:50.7]} 16. O-O-O {[%clk 0:02:06.6]} 16... a6 {[%clk
0:02:36.8]} 17. h4 {[%clk 0:02:06.2]} 17... b5 {[%clk 0:02:25.8]} 18. a3 {[%clk
0:02:03.2]} 18... Rab8 {[%clk 0:02:21.5]} 19. g5 {[%clk 0:02:00.4]} 19... a5
{[%clk 0:02:20]} 20. gxf6 {[%clk 0:02:00.4]} 20... gxf6 {[%clk 0:02:19.6]} 21.
Rg1+ {[%clk 0:02:00.4]} 21... Kh8 {[%clk 0:02:18.6]} 22. Rg4 {[%clk 0:02:00.4]}
22... Nh5 {[%clk 0:02:02.7]} 23. Qh6 {[%clk 0:01:50.5]} 23... Rg8 {[%clk
0:02:00.6]} 24. Bd3 {[%clk 0:01:47.6]} 24... f5 {[%clk 0:01:52]} 25. Rdg1 {[%clk
0:01:46.4]} 25... Rxg4 {[%clk 0:01:41.1]} 26. Rxg4 {[%clk 0:01:45.8]} 26... Qf8
{[%clk 0:01:40.1]} 27. Qxf8+ {[%clk 0:01:29.3]} 27... Rxf8 {[%clk 0:01:41]} 28.
Rg5 {[%clk 0:01:28.2]} 28... b4 {[%clk 0:01:40.4]} 29. axb4 {[%clk 0:01:24.5]}
29... axb4 {[%clk 0:01:40.4]} 30. Bb5 {[%clk 0:01:24.9]} 30... Na7 {[%clk
0:01:40.4]} 31. Bd7 {[%clk 0:01:20.5]} 31... bxc3 {[%clk 0:01:39]} 32. bxc3
{[%clk 0:01:19.5]} 32... h6 {[%clk 0:01:39.6]} 33. Rg1 {[%clk 0:01:11.3]} 33...
Nf4 {[%clk 0:01:38.1]} 34. Ne5 {[%clk 0:01:10.1]} 34... Ne2+ {[%clk 0:01:36.4]}
35. Kd1 {[%clk 0:01:02.8]} 35... Nxg1 {[%clk 0:01:37.3]} 36. Ke1 {[%clk
0:01:00.9]} 36... Nh3 {[%clk 0:01:35.1]} 37. Ndf3 {[%clk 0:00:51.5]} 37... Nf4
{[%clk 0:01:31.7]} 38. Nxf7+ {[%clk 0:00:50.6]} 38... Rxf7 {[%clk 0:01:31.2]}
39. Ne5 {[%clk 0:00:51.5]} 39... Re7 {[%clk 0:01:22.1]} 40. Kd2 {[%clk 0:00:50]}
40... Kg7 {[%clk 0:01:21.9]} 41. Ke3 {[%clk 0:00:49.8]} 41... Ng6 {[%clk
0:01:22.4]} 42. Ba4 {[%clk 0:00:42.8]} 42... Nxh4 {[%clk 0:01:20.2]} 43. c4
{[%clk 0:00:35]} 43... Ng6 {[%clk 0:01:18.3]} 44. c5 {[%clk 0:00:34]} 44... Nxe5
{[%clk 0:01:17.7]} 45. dxe5 {[%clk 0:00:34.4]} 45... Rc7 {[%clk 0:01:16.1]} 46.
Kd4 {[%clk 0:00:33.8]} 46... Kg6 {[%clk 0:01:15.8]} 0-1

[Event "Early-Titled-Tuesday-Blitz-May-07-2024"]
[Site "Chess.com"]
[Date "2024.05.07"]
[Round "9"]
[White "Arhan_Anand"]
[Black "francyIM"]
[Result "0-1"]
[WhiteElo "2618"]
[BlackElo "2799"]
[TimeControl "180+1"]
[EndTime "9:51:38 PDT"]
[Termination "francyIM won by resignation"]

1. d4 {[%clk 0:03:00.9]} 1... d5 {[%clk 0:02:57.5]} 2. c4 {[%clk 0:03:00.7]}
2... c6 {[%clk 0:02:58]} 3. Nc3 {[%clk 0:02:59.6]} 3... Nf6 {[%clk 0:02:56.5]}
4. e3 {[%clk 0:03:00]} 4... a6 {[%clk 0:02:56.4]} 5. Nf3 {[%clk 0:02:58.3]} 5...
Bf5 {[%clk 0:02:56.1]} 6. a4 {[%clk 0:02:55.5]} 6... e6 {[%clk 0:02:54.2]} 7. c5
{[%clk 0:02:52.3]} 7... a5 {[%clk 0:02:51]} 8. Bd3 {[%clk 0:02:49.2]} 8... Bxd3
{[%clk 0:02:50.1]} 9. Qxd3 {[%clk 0:02:50.1]} 9... Nbd7 {[%clk 0:02:50.2]} 10.
O-O {[%clk 0:02:48.5]} 10... b6 {[%clk 0:02:49.7]} 11. cxb6 {[%clk 0:02:49.4]}
11... Qxb6 {[%clk 0:02:50.6]} 12. e4 {[%clk 0:02:49.4]} 12... Bb4 {[%clk
0:02:45.6]} 13. e5 {[%clk 0:02:48.9]} 13... Ng8 {[%clk 0:02:45.6]} 14. Ne1
{[%clk 0:02:44]} 14... Ne7 {[%clk 0:02:44.3]} 15. Nc2 {[%clk 0:02:43.5]} 15...
O-O {[%clk 0:02:41.8]} 16. Bg5 {[%clk 0:02:42.3]} 16... Ng6 {[%clk 0:02:40.9]}
17. Kh1 {[%clk 0:02:37.4]} 17... c5 {[%clk 0:02:39.7]} 18. Nb5 {[%clk
0:02:28.6]} 18... cxd4 {[%clk 0:02:31.7]} 19. Nxb4 {[%clk 0:02:26.6]} 19... axb4
{[%clk 0:02:31.9]} 20. Qxd4 {[%clk 0:02:22.9]} 20... Qxd4 {[%clk 0:02:30.6]} 21.
Nxd4 {[%clk 0:02:23.8]} 21... Ndxe5 {[%clk 0:02:30.3]} 22. b3 {[%clk 0:02:13.2]}
22... Rfc8 {[%clk 0:02:19.6]} 23. Rfd1 {[%clk 0:02:12.7]} 23... h6 {[%clk
0:02:09.5]} 24. Bd2 {[%clk 0:02:10.1]} 24... Nd3 {[%clk 0:02:09.2]} 25. Kg1
{[%clk 0:02:10.2]} 25... e5 {[%clk 0:02:06.3]} 26. Nb5 {[%clk 0:02:10]} 26... e4
{[%clk 0:02:06.2]} 27. Re1 {[%clk 0:02:03.6]} 27... Nge5 {[%clk 0:02:05.5]} 28.
Red1 {[%clk 0:02:01.9]} 28... Nc6 {[%clk 0:02:02.4]} 29. Be3 {[%clk 0:01:58]}
29... Na5 {[%clk 0:01:59.9]} 30. Rab1 {[%clk 0:01:55.8]} 30... Rc3 {[%clk
0:01:57.1]} 31. Nd4 {[%clk 0:01:53.5]} 31... Rac8 {[%clk 0:01:52.3]} 32. Bd2
{[%clk 0:01:53]} 32... R3c5 {[%clk 0:01:51.5]} 33. Kf1 {[%clk 0:01:50.8]} 33...
h5 {[%clk 0:01:50.1]} 34. Nf5 {[%clk 0:01:40.9]} 34... R5c7 {[%clk 0:01:46.2]}
35. Nd4 {[%clk 0:01:31]} 35... g6 {[%clk 0:01:45.5]} 36. Be1 {[%clk 0:01:25.5]}
36... f5 {[%clk 0:01:44.8]} 37. Ke2 {[%clk 0:01:23.4]} 37... Kf7 {[%clk
0:01:43.6]} 38. Rxd3 {[%clk 0:01:22.7]} 38... exd3+ {[%clk 0:01:44.5]} 39. Kxd3
{[%clk 0:01:23.6]} 39... Rc3+ {[%clk 0:01:40.6]} 40. Bxc3 {[%clk 0:01:23.4]}
40... Rxc3+ {[%clk 0:01:41.5]} 41. Kd2 {[%clk 0:01:23.3]} 41... Kf6 {[%clk
0:01:41.5]} 42. Rb2 {[%clk 0:01:06.5]} 42... h4 {[%clk 0:01:40.9]} 43. h3 {[%clk
0:01:05.7]} 43... g5 {[%clk 0:01:40]} 44. Ke2 {[%clk 0:01:04.6]} 44... g4 {[%clk
0:01:39.7]} 45. f3 {[%clk 0:00:58.4]} 45... Ke5 {[%clk 0:01:39]} 46. Nc2 {[%clk
0:00:57]} 46... gxf3+ {[%clk 0:01:36.1]} 47. gxf3 {[%clk 0:00:57.9]} 47... Nc6
{[%clk 0:01:36.6]} 48. Ra2 {[%clk 0:00:40.8]} 48... Rxb3 {[%clk 0:01:33.5]} 49.
a5 {[%clk 0:00:39.2]} 49... Rc3 {[%clk 0:01:33.8]} 50. Rb2 {[%clk 0:00:33.3]}
50... b3 {[%clk 0:01:32.7]} 51. Ne1 {[%clk 0:00:33.3]} 51... Nxa5 {[%clk
0:01:30.8]} 52. Kd2 {[%clk 0:00:26.2]} 52... Kd4 {[%clk 0:01:30]} 0-1

[Event "Early-Titled-Tuesday-Blitz-May-07-2024"]
[Site "Chess.com"]
[Date "2024.05.07"]
[Round "9"]
[White "BeReal24"]
[Black "sterpfi"]
[Result "0-1"]
[WhiteElo "2481"]
[BlackElo "2335"]
[TimeControl "180+1"]
[EndTime "9:51:38 PDT"]
[Termination "sterpfi won by resignation"]

1. c4 {[%clk 0:03:00.9]} 1... e6 {[%clk 0:03:00.1]} 2. Nf3 {[%clk 0:02:53.8]}
2... d5 {[%clk 0:03:00.4]} 3. d4 {[%clk 0:02:50.9]} 3... Nf6 {[%clk 0:03:00.2]}
4. g3 {[%clk 0:02:48.4]} 4... dxc4 {[%clk 0:02:59.3]} 5. Bg2 {[%clk 0:02:48.2]}
5... c5 {[%clk 0:03:00]} 6. O-O {[%clk 0:02:46.7]} 6... Nc6 {[%clk 0:02:59.3]}
7. Qa4 {[%clk 0:02:42.9]} 7... Bd7 {[%clk 0:02:59.2]} 8. Qxc4 {[%clk 0:02:42.1]}
8... b5 {[%clk 0:02:59.8]} 9. Qd3 {[%clk 0:02:09.6]} 9... c4 {[%clk 0:02:59.8]}
10. Qd1 {[%clk 0:02:08.8]} 10... Rc8 {[%clk 0:02:50.7]} 11. a4 {[%clk
0:02:02.1]} 11... b4 {[%clk 0:02:40.1]} 12. Nbd2 {[%clk 0:02:00.4]} 12... Na5
{[%clk 0:02:34.1]} 13. Ne5 {[%clk 0:01:56.3]} 13... c3 {[%clk 0:02:21.9]} 14.
bxc3 {[%clk 0:01:50.4]} 14... bxc3 {[%clk 0:02:22]} 15. Nb3 {[%clk 0:01:46]}
15... Bb4 {[%clk 0:01:48.2]} 16. Nc5 {[%clk 0:01:26.2]} 16... Bxc5 {[%clk
0:01:40.5]} 17. dxc5 {[%clk 0:01:25.5]} 17... Rxc5 {[%clk 0:01:41.4]} 18. Qd4
{[%clk 0:01:16]} 18... Qc7 {[%clk 0:01:35.7]} 19. Nxd7 {[%clk 0:01:11.9]} 19...
Nxd7 {[%clk 0:01:33.1]} 20. Ba3 {[%clk 0:01:06.8]} 20... Rc4 {[%clk 0:01:25.3]}
21. Qxg7 {[%clk 0:01:06.5]} 21... Qe5 {[%clk 0:01:25.9]} 22. Qh6 {[%clk
0:01:04.5]} 22... c2 {[%clk 0:01:14.5]} 23. Qd2 {[%clk 0:00:47.9]} 23... Nb3
{[%clk 0:01:06.6]} 24. Qd3 {[%clk 0:00:47.9]} 24... Rc3 {[%clk 0:01:00.8]} 25.
Qa6 {[%clk 0:00:30.9]} 25... Nxa1 {[%clk 0:01:00.8]} 26. Bb2 {[%clk 0:00:23]}
26... Nb3 {[%clk 0:00:46.2]} 27. f4 {[%clk 0:00:20.2]} 27... Qc5+ {[%clk
0:00:38.1]} 28. Kh1 {[%clk 0:00:20.1]} 28... O-O {[%clk 0:00:36.5]} 29. Bc1
{[%clk 0:00:16.5]} 29... Nxc1 {[%clk 0:00:36]} 30. Rxc1 {[%clk 0:00:17.4]} 30...
Qe3 {[%clk 0:00:36.2]} 31. Rg1 {[%clk 0:00:17.1]} 31... c1=Q {[%clk 0:00:35.5]}
32. Rxc1 {[%clk 0:00:17.3]} 32... Rxc1+ {[%clk 0:00:35.9]} 0-1

[Event "Early-Titled-Tuesday-Blitz-May-07-2024"]
[Site "Chess.com"]
[Date "2024.05.07"]
[Round "9"]
[White "VacheH009"]
[Black "nochewycandy"]
[Result "0-1"]
[WhiteElo "2575"]
[BlackElo "2802"]
[TimeControl "180+1"]
[EndTime "9:51:40 PDT"]
[Termination "nochewycandy won by resignation"]

1. d4 {[%clk 0:03:00.9]} 1... g6 {[%clk 0:03:00.9]} 2. c4 {[%clk 0:02:59.8]}
2... Bg7 {[%clk 0:03:01.4]} 3. Nc3 {[%clk 0:02:58.4]} 3... d6 {[%clk 0:03:02]}
4. e4 {[%clk 0:02:57.1]} 4... e5 {[%clk 0:03:01.1]} 5. d5 {[%clk 0:02:56.6]}
5... a5 {[%clk 0:03:01.1]} 6. Bd3 {[%clk 0:02:53]} 6... Na6 {[%clk 0:03:01.7]}
7. Bc2 {[%clk 0:02:41.1]} 7... Bh6 {[%clk 0:02:59]} 8. Bxh6 {[%clk 0:02:37.2]}
8... Nxh6 {[%clk 0:02:59.9]} 9. Qd2 {[%clk 0:02:37]} 9... Ng8 {[%clk 0:03:00.1]}
10. O-O-O {[%clk 0:02:29.5]} 10... Nc5 {[%clk 0:02:58.3]} 11. f4 {[%clk
0:02:27.6]} 11... exf4 {[%clk 0:02:51.2]} 12. Qxf4 {[%clk 0:02:26]} 12... Qf6
{[%clk 0:02:51.3]} 13. Qxf6 {[%clk 0:02:11.1]} 13... Nxf6 {[%clk 0:02:51.1]} 14.
Nf3 {[%clk 0:02:11.3]} 14... O-O {[%clk 0:02:38]} 15. Nb5 {[%clk 0:01:55.3]}
15... Na6 {[%clk 0:02:37.6]} 16. e5 {[%clk 0:01:37.7]} 16... dxe5 {[%clk
0:02:36.2]} 17. Nxe5 {[%clk 0:01:36.7]} 17... Re8 {[%clk 0:02:34.5]} 18. Rde1
{[%clk 0:01:31.5]} 18... Bd7 {[%clk 0:02:27.2]} 19. Nd4 {[%clk 0:01:29.1]} 19...
Nc5 {[%clk 0:02:21]} 20. Rhf1 {[%clk 0:01:26.2]} 20... Kg7 {[%clk 0:02:21.6]}
21. g4 {[%clk 0:01:12.3]} 21... Bxg4 {[%clk 0:02:07.7]} 22. Rxf6 {[%clk
0:01:03.3]} 22... Rxe5 {[%clk 0:02:07.2]} 23. Rxf7+ {[%clk 0:00:53.9]} 23...
Kxf7 {[%clk 0:02:08.1]} 24. Rxe5 {[%clk 0:00:54.1]} 24... Re8 {[%clk 0:02:06.4]}
25. Rxe8 {[%clk 0:00:50.9]} 25... Kxe8 {[%clk 0:02:06.4]} 26. Kd2 {[%clk
0:00:47.4]} 26... Ke7 {[%clk 0:02:05.4]} 27. Ke3 {[%clk 0:00:43]} 27... Bd7
{[%clk 0:02:04.4]} 28. h4 {[%clk 0:00:36.8]} 28... Kf6 {[%clk 0:02:02.6]} 29.
Kf4 {[%clk 0:00:36.4]} 29... h6 {[%clk 0:02:02.9]} 30. Nf3 {[%clk 0:00:36.2]}
30... b5 {[%clk 0:01:47.9]} 31. cxb5 {[%clk 0:00:33.8]} 31... Bxb5 {[%clk
0:01:48.8]} 32. Nd4 {[%clk 0:00:30.2]} 32... Bc4 {[%clk 0:01:45.8]} 33. Nc6
{[%clk 0:00:23.3]} 33... Bxa2 {[%clk 0:01:44]} 34. Nxa5 {[%clk 0:00:16.5]} 34...
Bxd5 {[%clk 0:01:44.5]} 35. b4 {[%clk 0:00:17.1]} 35... Na6 {[%clk 0:01:39.5]}
36. b5 {[%clk 0:00:15.3]} 36... Nc5 {[%clk 0:01:38.1]} 37. Bd1 {[%clk
0:00:13.6]} 37... g5+ {[%clk 0:01:37.5]} 38. hxg5+ {[%clk 0:00:13.8]} 38...
hxg5+ {[%clk 0:01:38.4]} 39. Ke3 {[%clk 0:00:14.1]} 39... Ke5 {[%clk 0:01:38.5]}
40. Be2 {[%clk 0:00:14.5]} 40... Ne6 {[%clk 0:01:34.8]} 41. Bc4 {[%clk
0:00:14.3]} 41... Nd4 {[%clk 0:01:31.9]} 42. Bxd5 {[%clk 0:00:08.8]} 42... Kxd5
{[%clk 0:01:32.8]} 43. Nb7 {[%clk 0:00:08.2]} 43... Nxb5 {[%clk 0:01:28.4]} 44.
Nd8 {[%clk 0:00:06.6]} 44... Nd6 {[%clk 0:01:28.9]} 45. Kf3 {[%clk 0:00:05.9]}
45... c5 {[%clk 0:01:27.1]} 46. Ke3 {[%clk 0:00:04.9]} 46... c4 {[%clk
0:01:25.7]} 47. Kf3 {[%clk 0:00:04.9]} 47... g4+ {[%clk 0:01:21.4]} 48. Kxg4
{[%clk 0:00:04.1]} 48... c3 {[%clk 0:01:21.9]} 49. Kf3 {[%clk 0:00:04.5]} 49...
c2 {[%clk 0:01:22.5]} 50. Ke2 {[%clk 0:00:04.3]} 50... c1=Q {[%clk 0:01:22.9]}
0-1

[Event "Early-Titled-Tuesday-Blitz-May-07-2024"]
[Site "Chess.com"]
[Date "2024.05.07"]
[Round "9"]
[White "BashirliSaadat"]
[Black "Silent-Killer100"]
[Result "0-1"]
[WhiteElo "2392"]
[BlackElo "2552"]
[TimeControl "180+1"]
[EndTime "9:51:42 PDT"]
[Termination "Silent-Killer100 won by resignation"]

1. d4 {[%clk 0:02:55.2]} 1... b6 {[%clk 0:03:00.9]} 2. e4 {[%clk 0:02:53.6]}
2... Bb7 {[%clk 0:03:01.4]} 3. Bd3 {[%clk 0:02:53.4]} 3... g6 {[%clk 0:03:01.9]}
4. Nf3 {[%clk 0:02:53.4]} 4... Bg7 {[%clk 0:03:02.4]} 5. O-O {[%clk 0:02:53.3]}
5... e6 {[%clk 0:03:02.7]} 6. Qe2 {[%clk 0:02:53.4]} 6... Ne7 {[%clk 0:03:02.8]}
7. Nc3 {[%clk 0:02:52.7]} 7... O-O {[%clk 0:03:00.5]} 8. Be3 {[%clk 0:02:53.1]}
8... d6 {[%clk 0:03:00.8]} 9. Nd2 {[%clk 0:02:53.5]} 9... e5 {[%clk 0:03:00.1]}
10. dxe5 {[%clk 0:02:46.9]} 10... dxe5 {[%clk 0:02:59.2]} 11. Rad1 {[%clk
0:02:46.5]} 11... Nbc6 {[%clk 0:02:52.6]} 12. Nb3 {[%clk 0:02:43.9]} 12... Nd4
{[%clk 0:02:48.3]} 13. Bxd4 {[%clk 0:02:23.3]} 13... exd4 {[%clk 0:02:49.2]} 14.
Bc4 {[%clk 0:02:22.9]} 14... c5 {[%clk 0:02:44.7]} 15. Nb1 {[%clk 0:02:16.7]}
15... Qc7 {[%clk 0:02:41.4]} 16. N1d2 {[%clk 0:02:15.3]} 16... Rad8 {[%clk
0:02:39.4]} 17. Nf3 {[%clk 0:02:11.8]} 17... Qc6 {[%clk 0:02:30.6]} 18. Nbd2
{[%clk 0:02:05.4]} 18... h6 {[%clk 0:02:19.1]} 19. Bb5 {[%clk 0:02:02.8]} 19...
Qc7 {[%clk 0:02:15.6]} 20. Ba6 {[%clk 0:01:58.4]} 20... Kh7 {[%clk 0:02:12.1]}
21. Bxb7 {[%clk 0:01:57.8]} 21... Qxb7 {[%clk 0:02:13]} 22. a4 {[%clk
0:01:54.3]} 22... f5 {[%clk 0:02:04.3]} 23. exf5 {[%clk 0:01:52.8]} 23... Nxf5
{[%clk 0:02:05.2]} 24. Nc4 {[%clk 0:01:49.9]} 24... Rfe8 {[%clk 0:02:04.7]} 25.
Qd3 {[%clk 0:01:48.8]} 25... Re7 {[%clk 0:01:58.1]} 26. Rfe1 {[%clk 0:01:48]}
26... Rde8 {[%clk 0:01:57.3]} 27. Rxe7 {[%clk 0:01:44.6]} 27... Rxe7 {[%clk
0:01:52.2]} 28. g4 {[%clk 0:01:41.5]} 28... Ne3 {[%clk 0:01:52]} 29. fxe3 {[%clk
0:00:35.1]} 29... Qxf3 {[%clk 0:01:51.5]} 30. Rf1 {[%clk 0:00:28.9]} 30... Qxg4+
{[%clk 0:01:48.3]} 31. Kh1 {[%clk 0:00:29.3]} 31... dxe3 {[%clk 0:01:47.4]} 32.
Nxe3 {[%clk 0:00:28.6]} 32... Qxa4 {[%clk 0:01:33.4]} 33. c4 {[%clk 0:00:21.5]}
33... Qc6+ {[%clk 0:01:13.2]} 34. Nd5 {[%clk 0:00:20.5]} 34... Rd7 {[%clk
0:01:13.9]} 35. Rg1 {[%clk 0:00:19.8]} 35... Bxb2 {[%clk 0:01:10.8]} 36. Rf1
{[%clk 0:00:15.1]} 36... Bg7 {[%clk 0:01:09.1]} 37. Kg1 {[%clk 0:00:13.4]} 37...
b5 {[%clk 0:01:08.7]} 38. Qc2 {[%clk 0:00:03.8]} 38... bxc4 {[%clk 0:01:08.3]}
39. Nf4 {[%clk 0:00:04.3]} 39... Bd4+ {[%clk 0:01:07.9]} 0-1